bitfinex/quotes_ETHUSD_20250611
["timestamp","ask_amount","ask_price","bid_price","bid_amount"]
[1749659548961,0.95455739,2855.3,2853.6,10.7696]
[1749659549158,0.8317,2855.4,2854.1,0.55]
[1749659549467,0.8317,2855.4,2854.4,10.0]
[1749659550230,0.8317,2855.4,2854.0,0.7696]
[1749659550504,0.8317,2855.4,2854.1,0.55]
[1749659550860,0.8317,2855.4,2854.0,10.7696]
[1749659551065,0.8317,2855.4,2854.0,0.7696]
[1749659551274,0.29299613,2855.3,2854.0,0.7696]
[1749659551529,0.29299613,2855.3,2854.0,10.7696]
[1749659551812,0.29299613,2855.3,2854.0,0.7696]
[1749659552003,0.7562,2855.2,2854.0,0.7696]
[1749659552160,0.7562,2855.2,2854.1,0.00530195]
[1749659552710,0.7562,2855.2,2854.3,10.7877]
[1749659552908,0.29299613,2855.3,2854.6,8.71387388]
[1749659553111,0.7958,2856.5,2854.7,10.55]
[1749659553311,0.7958,2856.5,2854.6,8.71387388]
[1749659553312,0.7958,2856.5,2854.6,0.55]
[1749659553605,10.34405706,2856.6,2854.4,8.71387388]
[1749659553606,8.71387388,2856.2,2854.4,0.55]
[1749659553766,0.7958,2856.1,2854.4,0.55]
[1749659553968,0.55,2856.5,2854.5,10.0]
[1749659553969,0.7958,2855.9,2854.5,10.0]
[1749659554412,0.1744,2855.2,2854.7,0.1744]
[1749659555070,0.1744,2855.3,2854.8,0.1744]
[1749659556335,0.1744,2855.0,2854.5,0.1744]
[1749659556642,0.1744,2854.7,2854.2,0.1744]
[1749659556810,0.7845,2855.1,2854.0,0.8247]
[1749659557125,0.1744,2854.4,2854.0,0.8247]
[1749659558139,0.7845,2855.1,2854.0,0.8247]
[1749659558301,0.7845,2855.1,2854.3,0.05]
[1749659558302,0.1744,2854.6,2854.3,0.05]
[1749659558708,0.7845,2855.1,2854.3,0.05]
[1749659558905,0.1744,2854.8,2854.3,0.2244]
[1749659559218,0.1744,2854.8,2854.3,0.1744]
[1749659559601,0.7845,2855.1,2854.0,0.8247]
[1749659559838,0.1744,2854.6,2854.1,0.1744]
[1749659560011,0.1744,2854.6,2854.1,0.17970195]
[1749659560217,0.1744,2854.5,2854.3,0.05]
[1749659560606,0.1744,2854.7,2854.3,0.05]
[1749659563165,3.5009474,2856.4,2854.3,0.05]
[1749659563166,0.7879,2855.8,2854.6,10.55]
[1749659563381,0.1744,2855.5,2855.0,10.0]
[1749659563868,0.1744,2855.7,2855.1,0.55]
[1749659564085,0.1744,2855.7,2855.1,0.55291982]
[1749659564282,0.8083,2856.1,2855.2,0.8277]
[1749659564457,0.1744,2855.8,2855.4,0.1744]
[1749659565171,0.1744,2856.2,2855.7,0.1744]
[1749659565891,0.1744,2856.6,2856.1,0.1744]
[1749659566222,0.1744,2856.6,2855.9,0.7917]
[1749659566223,0.8252,2857.4,2856.5,8.71387388]
[1749659566441,0.1744,2856.9,2856.4,0.1744]
[1749659566625,0.8252,2857.4,2856.1,10.0]
[1749659566828,0.1744,2856.6,2856.1,10.1744]
[1749659567066,0.1744,2856.6,2856.1,0.1744]
[1749659567471,0.7949,2856.6,2855.8,10.0]
[1749659567643,0.1744,2856.2,2855.8,10.0]
[1749659568444,0.1744,2856.2,2855.9,0.00291901]
[1749659568648,0.1744,2856.2,2855.8,10.0]
[1749659569060,0.7949,2856.6,2856.0,10.0]
[1749659569243,8.71387388,2857.3,2855.2,0.9957]
[1749659569244,0.1744,2855.7,2855.2,0.9957]
[1749659569573,0.949,2855.9,2855.3,4.67]
[1749659569757,0.1744,2855.7,2855.4,10.0]
[1749659569947,0.1744,2856.0,2855.6,10.0]
[1749659570146,0.1744,2856.0,2855.6,4.67]
[1749659570766,0.1744,2855.7,2855.6,4.67]
[1749659571146,0.1744,2855.9,2855.6,4.67]
[1749659571547,0.1744,2855.9,2855.7,10.0]
[1749659571940,0.7867,2856.4,2855.7,10.0]
[1749659572244,0.1744,2856.2,2855.7,10.1744]
[1749659572657,0.1744,2856.0,2855.7,10.0]
[1749659573173,0.1744,2856.0,2855.7,10.77636809]
[1749659573340,0.7867,2856.4,2855.7,10.77636809]
[1749659573341,0.7867,2856.4,2855.7,10.0]
[1749659573787,0.1744,2856.0,2855.7,10.0]
[1749659574301,0.1744,2856.0,2855.7,14.67]
[1749659576337,0.1744,2856.2,2855.7,14.8444]
[1749659578381,0.8192,2856.8,2855.9,10.55]
[1749659578685,0.1744,2856.6,2856.1,0.1744]
[1749659578861,0.1744,2856.6,2856.3,10.0]
[1749659579558,0.1744,2856.3,2856.2,4.67]
[1749659580793,0.8192,2856.8,2856.2,4.67]
[1749659580794,0.1744,2856.6,2856.2,4.67]
[1749659580990,0.7543,2857.2,2856.4,10.0]
[1749659581192,0.1744,2856.9,2856.4,10.1744]
[1749659581487,0.7543,2857.2,2856.4,10.0]
[1749659581996,0.7543,2857.2,2856.3,4.67]
[1749659582223,0.9569,2856.4,2856.3,4.67]
[1749659582709,0.1744,2856.4,2856.3,4.67]
[1749659582854,0.1744,2856.4,2856.3,14.67]
[1749659583061,0.7825,2856.9,2856.3,14.67]
[1749659583062,0.7825,2856.9,2856.4,10.0]
[1749659583389,0.7825,2856.9,2855.3,0.7777]
[1749659583390,3.50037978,2856.9,2855.3,0.7777]
[1749659583555,0.7909,2856.8,2855.3,0.7777]
[1749659584160,0.7909,2856.6,2855.0,4.67]
[1749659584598,0.7909,2856.6,2855.1,10.0]
[1749659584907,0.7909,2856.6,2855.0,4.67]
[1749659585105,0.7909,2856.6,2855.1,10.0]
[1749659585457,1.36,2856.5,2854.9,0.7777]
[1749659585676,0.81,2856.4,2854.9,0.7777]
[1749659587374,0.81,2856.4,2854.6,10.7985]
[1749659587757,10.92638739,2856.6,2854.6,10.7985]
[1749659587758,0.7908,2856.2,2854.6,10.7985]
[1749659588060,0.7908,2856.2,2854.8,10.0]
[1749659588559,0.7908,2856.2,2855.0,10.0]
[1749659588758,0.7816,2856.0,2854.3,0.8253]
[1749659589576,0.782,2855.8,2854.3,0.8253]
[1749659589917,1.332,2855.8,2854.3,0.05]
[1749659590120,0.778,2855.7,2854.3,0.05]
[1749659592201,0.1744,2854.9,2854.4,0.7244]
[1749659592388,0.778,2855.7,2854.7,10.0]
[1749659592588,0.1744,2855.2,2854.7,0.1744]
[1749659592797,0.1744,2854.8,2854.3,0.2244]
[1749659593050,0.7769,2854.9,2854.3,0.05]
[1749659593181,0.1744,2854.6,2854.3,0.05]
[1749659593715,0.7769,2854.9,2854.3,0.05]
[1749659594123,0.1744,2854.5,2854.3,0.05]
[1749659594614,0.1744,2854.8,2854.5,10.0]
[1749659594818,0.1744,2854.8,2854.4,0.7822]
[1749659594975,0.8068,2855.3,2854.3,0.05]
[1749659596204,0.8081,2855.2,2854.3,0.05]
[1749659598243,0.1744,2854.5,2854.3,0.05]
[1749659598695,0.8081,2855.2,2854.3,0.05]
[1749659600135,0.1744,2854.5,2854.3,0.05]
[1749659600546,0.8081,2855.2,2854.4,22.35201376]
[1749659600837,0.1744,2854.8,2854.5,10.0]
[1749659601333,0.1744,2854.8,2854.4,22.35201376]
[1749659601501,0.1744,2854.8,2854.5,10.0]
[1749659601901,0.1744,2854.5,2854.3,0.05]
[1749659602599,0.8081,2855.2,2854.5,10.0]
[1749659602799,0.1744,2854.7,2854.5,10.0]
[1749659603063,0.1744,2854.7,2854.6,21.55661376]
[1749659603249,0.1744,2854.7,2854.6,10.0]
[1749659603543,0.8103,2856.2,2854.7,0.7657]
[1749659603742,0.8103,2856.1,2854.7,10.7657]
[1749659603945,0.8103,2856.1,2854.7,0.7657]
[1749659604357,0.8103,2856.1,2854.8,15.22]
[1749659604569,0.8103,2856.1,2855.1,8.73614875]
[1749659604712,0.8103,2856.1,2855.2,15.451]
[1749659605541,0.8103,2856.1,2855.4,10.0]
[1749659605951,0.7772,2857.2,2855.4,10.0]
[1749659606115,0.7772,2857.2,2855.3,0.55]
[1749659606514,0.7772,2857.2,2855.6,10.0]
[1749659606973,0.7772,2857.2,2855.7,0.7968]
[1749659607614,10.0,2857.2,2855.7,0.7968]
[1749659607813,0.758,2857.1,2855.7,0.7968]
[1749659609368,0.8018,2856.9,2855.7,0.7968]
[1749659609559,0.8018,2856.9,2855.3,0.769]
[1749659609858,0.8018,2856.7,2855.3,0.769]
[1749659610356,0.8018,2856.5,2855.0,10.769]
[1749659610547,0.817,2856.1,2854.4,0.7628]
[1749659610926,0.817,2856.1,2854.5,14.67]
[1749659611430,0.817,2856.1,2854.5,4.67]
[1749659611629,0.817,2856.1,2855.0,10.0]
[1749659611835,0.817,2856.1,2855.1,0.8043]
[1749659612848,0.817,2856.1,2855.0,14.67]
[1749659613050,0.817,2856.1,2855.0,15.44636809]
[1749659613256,0.817,2856.1,2855.0,14.67]
[1749659613462,0.1744,2855.4,2855.0,14.67]
[1749659613630,0.1744,2855.4,2855.0,10.0]
[1749659614244,0.1744,2855.1,2855.0,10.0]
[1749659614427,0.1744,2855.1,2854.8,0.7522]
[1749659614627,0.7957,2855.4,2854.5,0.7663]
[1749659614827,0.1744,2854.9,2854.5,0.7663]
[1749659616027,0.1744,2854.9,2854.6,8.73614875]
[1749659616294,0.1744,2855.2,2854.7,0.1744]
[1749659616432,0.766,2855.7,2854.5,0.7663]
[1749659616636,0.1744,2854.9,2854.5,0.7663]
[1749659619249,0.1744,2854.9,2854.6,0.00292034]
[1749659619668,0.1744,2854.9,2854.5,0.7663]
[1749659619995,0.1744,2854.6,2854.2,0.7647]
[1749659622761,0.7711,2855.1,2854.4,8.73614875]
[1749659622961,0.1744,2854.8,2854.5,10.0]
[1749659623685,0.1744,2854.8,2854.5,0.05]
[1749659625763,0.1744,2854.8,2854.5,8.78614875]
[1749659626111,0.1744,2855.2,2854.7,0.7502]
[1749659626398,1.3742998,2857.3,2855.1,0.7502]
[1749659626399,0.7974,2856.1,2855.1,0.7502]
[1749659626562,0.1744,2855.7,2855.4,8.73614875]
[1749659626962,0.1744,2855.7,2855.5,10.0]
[1749659627167,0.7995,2856.5,2855.6,0.8141]
[1749659627373,0.7995,2856.5,2856.0,11.53987916]
[1749659628563,0.7995,2856.5,2855.8,10.0]
[1749659630362,0.7995,2856.5,2855.9,4.67]
[1749659631391,0.7995,2856.5,2856.0,10.0]
[1749659631689,0.7995,2856.5,2855.9,4.67]
[1749659632871,0.7995,2856.5,2856.0,4.67]
[1749659633193,0.7995,2856.5,2855.5,10.0]
[1749659633194,0.7995,2856.5,2856.2,10.0]
[1749659634602,0.7613,2857.8,2856.0,10.0]
[1749659634904,0.7613,2857.6,2856.2,10.0]
[1749659635057,1.07613,2857.5,2856.2,10.0]
[1749659635260,0.7797,2857.4,2856.2,10.0]
[1749659637203,0.1744,2856.2,2856.1,4.67]
[1749659637495,0.1744,2856.2,2855.7,14.67]
[1749659637704,0.1744,2856.0,2855.7,14.67]
[1749659638059,0.1744,2856.0,2855.7,10.0]
[1749659638302,0.1744,2856.0,2855.6,4.67]
[1749659638463,0.7931,2856.4,2855.6,4.67]
[1749659638665,0.7931,2856.4,2855.3,4.67]
[1749659638892,0.1744,2855.6,2855.3,4.67]
[1749659639092,0.1744,2855.6,2855.4,10.0]
[1749659639464,0.1744,2855.6,2855.3,4.67]
[1749659639902,0.1744,2855.6,2855.4,10.0]
[1749659641503,0.7837,2856.1,2855.4,10.0]
[1749659641689,0.1744,2855.8,2855.4,10.0]
[1749659642305,0.1744,2855.8,2855.6,10.0]
[1749659642898,0.7837,2856.1,2855.5,4.67]
[1749659643212,0.8003,2855.4,2854.6,4.8444]
[1749659643410,0.1744,2854.8,2854.7,4.67]
[1749659643723,0.1744,2854.8,2854.7,14.67]
[1749659643884,0.1744,2854.8,2854.7,4.67]
[1749659645021,0.9297,2854.8,2854.4,4.67]
[1749659645329,0.1744,2854.5,2854.1,10.0]
[1749659645485,0.7553,2855.1,2854.4,10.0]
[1749659645682,0.1744,2854.7,2854.6,10.0]
[1749659646150,0.8105,2856.6,2854.6,14.20808275]
[1749659646432,3.50072982,2856.6,2854.8,10.0]
[1749659646587,0.8105,2856.4,2854.7,4.67]
[1749659646792,0.8105,2855.9,2854.8,10.0]
[1749659647024,0.8105,2855.9,2854.6,0.8071]
[1749659647025,0.8105,2855.9,2854.6,10.8071]
[1749659648916,0.8105,2855.9,2854.7,8.73098275]
[1749659650225,0.8105,2855.9,2854.8,0.00292013]
[1749659651110,0.8105,2855.9,2855.0,10.0]
[1749659652430,0.55,2855.8,2855.0,14.67]
[1749659652632,0.7538,2855.7,2855.0,14.67]
[1749659653002,0.7538,2855.7,2855.0,4.67]
[1749659653745,0.7538,2855.7,2854.9,10.0]
[1749659654251,0.7538,2855.7,2854.9,14.67]
[1749659656037,0.1744,2855.2,2854.9,14.67]
[1749659656406,0.7538,2855.7,2855.0,0.00291993]
[1749659657233,0.55,2855.6,2855.0,0.00291993]
[1749659657440,0.8091,2855.5,2855.0,0.00291993]
[1749659657824,2.1001719,2855.5,2855.0,0.00291993]
[1749659658203,0.8091,2855.5,2855.0,0.00291993]
[1749659659010,0.1744,2855.2,2855.0,0.00291993]
[1749659662248,0.1744,2855.2,2855.1,11.55161905]
[1749659662449,0.1744,2855.2,2855.1,21.55161905]
[1749659662749,0.1744,2855.2,2855.1,10.0]
[1749659664044,0.1744,2855.2,2855.1,21.55161905]
[1749659664549,1.03072485,2857.1,2855.1,26.22161905]
[1749659664851,0.816,2856.1,2855.7,11.55161905]
[1749659665048,0.1744,2855.9,2855.7,11.55161905]
[1749659665443,0.825,2856.5,2855.8,15.492]
[1749659665611,0.1744,2856.3,2856.0,11.55161905]
[1749659666157,0.7665,2856.9,2856.1,4.67]
[1749659666312,0.1744,2856.5,2856.1,4.67]
[1749659666949,0.1744,2856.5,2856.3,11.55161905]
[1749659667363,0.1744,2856.5,2856.4,10.0]
[1749659668044,0.7671,2857.2,2856.2,0.0029187]
[1749659668269,0.1744,2856.3,2856.2,0.0029187]
[1749659668634,0.8068,2857.0,2856.2,0.0029187]
[1749659668943,0.1744,2856.9,2856.6,10.0]
[1749659669380,0.1744,2856.9,2856.8,11.55161905]
[1749659670758,0.8068,2857.3,2856.7,11.55161905]
[1749659670962,0.1744,2857.1,2856.7,11.55161905]
[1749659671370,0.1744,2857.1,2856.6,0.8261]
[1749659671942,0.8068,2857.3,2856.3,0.7966]
[1749659672145,0.1744,2856.7,2856.3,0.7966]
[1749659672588,0.8068,2857.3,2856.2,10.1744]
[1749659672589,0.1744,2856.6,2856.2,10.0]
[1749659674084,0.55,2857.7,2855.6,8.1377532]
[1749659674085,0.1744,2856.2,2855.7,0.7966]
[1749659674243,0.1744,2856.2,2855.9,10.0]
[1749659674451,0.1744,2856.0,2855.9,10.0]
[1749659674649,0.1744,2856.0,2855.8,4.67]
[1749659674886,0.7586,2856.2,2855.4,0.7966]
[1749659675095,0.1744,2855.7,2855.4,0.7966]
[1749659675381,0.1744,2855.7,2855.2,4.67]
[1749659675568,0.1744,2855.4,2854.9,0.1744]
[1749659675770,0.8076,2856.1,2854.8,0.821]
[1749659675771,0.1744,2855.2,2854.8,0.821]
[1749659675979,0.1744,2855.2,2854.8,10.821]
[1749659676174,0.1744,2855.2,2854.8,15.491]
[1749659676569,0.1744,2855.2,2854.8,5.491]
[1749659677384,0.1744,2855.4,2854.9,10.1744]
[1749659678088,0.1744,2855.4,2855.3,10.0]
[1749659678858,0.1744,2855.4,2854.9,10.1744]
[1749659679061,0.1744,2855.2,2854.8,4.67]
[1749659679262,0.8059,2855.5,2854.7,10.0]
[1749659679446,0.8059,2855.5,2854.6,4.67]
[1749659679447,0.1744,2854.9,2854.6,4.67]
[1749659679649,0.1744,2854.9,2854.5,5.80938558]
[1749659680062,0.1744,2854.9,2854.6,10.0]
[1749659680464,0.1744,2854.9,2854.4,4.8444]
[1749659680669,0.1744,2854.7,2854.3,10.0]
[1749659681287,0.1744,2854.7,2854.3,10.34702113]
[1749659681491,0.1744,2855.0,2854.7,0.7745]
[1749659681672,0.1744,2855.0,2854.7,10.7745]
[1749659682451,0.8059,2855.5,2854.7,10.7745]
[1749659682657,0.1744,2855.4,2854.9,0.1744]
[1749659682858,0.1744,2855.4,2855.1,10.0]
[1749659683082,0.1744,2855.4,2854.9,10.1744]
[1749659684912,0.8019,2855.8,2855.3,10.0]
[1749659685116,1.03645349,2857.6,2855.3,10.7877]
[1749659685117,0.1744,2855.6,2855.3,10.7877]
[1749659685812,0.1744,2856.0,2855.5,0.1744]
[1749659686115,0.1744,2856.0,2855.7,10.0]
[1749659687183,0.1744,2856.0,2855.8,0.00291911]
[1749659689601,0.1744,2856.0,2855.9,10.0]
[1749659689800,0.1744,2856.0,2855.9,14.67]
[1749659693556,0.764,2857.0,2856.3,10.0]
[1749659693916,0.764,2857.0,2856.2,4.67]
[1749659694705,0.1744,2856.3,2856.2,4.67]
[1749659698358,0.1744,2856.3,2855.9,4.67]
[1749659698657,0.1744,2856.0,2855.9,14.67]
[1749659700271,0.1744,2856.0,2855.9,10.0]
[1749659700425,0.1744,2856.0,2855.7,4.67]
[1749659700625,0.812,2856.4,2855.7,4.67]
[1749659701575,0.55,2856.3,2855.7,4.67]
[1749659701729,0.1744,2855.7,2855.1,4.67]
[1749659701928,0.8304,2856.2,2854.9,11.54123348]
[1749659701929,0.1744,2855.4,2855.2,16.21123348]
[1749659702375,0.1744,2855.4,2855.3,10.0]
[1749659702549,0.8304,2856.2,2855.3,15.4719]
[1749659702756,0.1744,2855.9,2855.6,10.0]
[1749659703345,0.8304,2856.2,2855.3,4.67]
[1749659703532,0.1744,2855.5,2855.3,4.67]
[1749659703732,0.8304,2856.2,2855.5,10.0]
[1749659703970,0.1744,2855.7,2855.5,10.0]
[1749659704330,0.1744,2855.7,2855.6,0.8276]
[1749659704659,0.1744,2855.9,2855.6,0.8276]
[1749659704855,0.1744,2855.9,2855.7,4.67]
[1749659705058,0.813,2856.0,2855.7,4.67]
[1749659705259,0.1744,2855.7,2854.9,0.9465]
[1749659705473,0.813,2856.0,2855.4,11.54123348]
[1749659705765,0.1744,2855.7,2855.5,10.0]
[1749659706986,0.1744,2855.9,2855.6,0.8084]
[1749659707148,0.1744,2855.7,2855.5,10.0]
[1749659707776,0.1744,2855.7,2855.3,0.8084]
[1749659708860,0.1744,2855.7,2855.5,10.0]
[1749659709058,0.1744,2856.0,2855.5,10.1744]
[1749659709362,0.1744,2856.0,2855.7,11.54123348]
[1749659709901,0.1744,2856.0,2855.8,10.0]
[1749659710207,0.7612,2856.6,2855.9,0.8244]
[1749659710702,0.7612,2856.6,2855.6,0.8244]
[1749659711200,0.7612,2856.6,2855.3,10.7997]
[1749659711370,0.7612,2856.6,2855.3,0.7997]
[1749659711898,0.7669,2856.4,2855.0,0.7997]
[1749659712703,0.8032,2856.2,2854.7,0.803]
[1749659712869,11.54123348,2855.9,2854.7,0.803]
[1749659713072,0.8032,2855.8,2854.4,3.58298751]
[1749659713292,1.23444335,2855.7,2854.5,0.39252778]
[1749659713470,0.8269,2855.6,2854.5,0.39252778]
[1749659713879,0.8269,2855.6,2854.9,10.0]
[1749659714081,0.8269,2855.6,2854.6,10.0]
[1749659714293,0.8269,2855.6,2854.6,0.38384031]
[1749659714586,0.8269,2855.6,2854.6,10.38384031]
[1749659714901,0.8269,2855.6,2854.4,0.803]
[1749659715067,0.8269,2855.6,2854.1,15.09882099]
[1749659715268,0.8269,2855.6,2854.2,10.0]
[1749659716364,0.8269,2855.6,2854.7,11.54123348]
[1749659716595,0.8269,2855.6,2854.6,0.8238]
[1749659716870,0.8269,2855.6,2854.5,10.0]
[1749659717180,0.8269,2855.6,2854.7,0.00292023]
[1749659717965,0.8269,2855.6,2854.7,10.00292023]
[1749659718363,0.8269,2855.6,2854.7,0.00292023]
[1749659719708,0.8269,2855.6,2854.7,11.54415371]
[1749659719907,0.8269,2855.6,2854.8,10.0]
[1749659720077,0.1744,2854.9,2854.7,0.7978]
[1749659720285,0.1744,2854.9,2854.8,10.0]
[1749659723114,0.1744,2854.9,2854.7,4.67]
[1749659724516,0.1744,2854.9,2854.8,10.0]
[1749659724752,0.1744,2855.1,2854.8,10.0]
[1749659724947,0.1744,2855.3,2855.2,10.0]
[1749659725496,0.7597,2856.0,2855.2,10.0]
[1749659725711,0.1744,2855.6,2855.4,10.0]
[1749659726539,0.1744,2855.9,2855.5,5.4652]
[1749659727731,0.7597,2856.0,2855.5,4.67]
[1749659727944,0.1744,2855.6,2855.5,4.67]
[1749659728494,0.1744,2855.6,2855.5,14.67]
[1749659728735,0.1744,2855.8,2855.5,14.67]
[1749659730338,0.7566,2856.2,2855.5,14.67]
[1749659730521,0.1744,2855.6,2855.5,10.0]
[1749659730723,0.7566,2856.2,2855.5,21.54123348]
[1749659730913,0.1744,2855.8,2855.5,21.54123348]
[1749659731311,0.1744,2855.8,2855.5,10.0]
[1749659731900,0.1744,2855.8,2855.6,14.67]
[1749659732511,0.7853,2856.5,2855.8,10.0]
[1749659732724,0.1744,2856.2,2855.8,11.54123348]
[1749659732925,0.1744,2856.2,2855.9,10.0]
[1749659733158,0.1744,2856.2,2856.1,11.54123348]
[1749659733533,0.8249,2857.7,2856.2,0.8072]
[1749659733730,0.1744,2856.8,2856.2,0.8072]
[1749659733937,0.1744,2856.8,2856.2,15.4772]
[1749659734656,0.1744,2856.8,2856.5,10.0]
[1749659735659,0.1744,2856.8,2856.3,0.1744]
[1749659735864,0.1744,2856.8,2856.3,10.1744]
[1749659736016,0.7711,2856.7,2856.3,10.0]
[1749659736220,0.1744,2856.4,2856.0,0.8227]
[1749659736620,0.1744,2856.4,2855.9,0.1744]
[1749659737532,0.1744,2856.4,2856.0,0.0029189]
[1749659738046,0.7711,2856.7,2856.0,0.0029189]
[1749659738218,0.7824,2856.4,2856.0,0.0029189]
[1749659738420,0.7824,2856.2,2856.0,0.0029189]
[1749659738661,1.3581,2856.1,2856.0,0.0029189]
[1749659738975,0.8081,2856.1,2856.0,0.0029189]
[1749659739124,1.3581,2856.1,2856.0,0.0029189]
[1749659739754,11.3581,2856.1,2856.0,0.0029189]
[1749659739960,0.8057,2855.7,2854.5,11.54123348]
[1749659740168,0.8057,2855.7,2854.6,10.0]
[1749659740370,0.1744,2854.9,2854.6,10.0]
[1749659740573,0.8057,2855.7,2854.9,10.8001]
[1749659740776,0.7837,2857.0,2855.5,10.8001]
[1749659740960,0.8285648,2857.1,2855.5,10.8001]
[1749659740961,0.1744,2855.7,2855.5,10.8001]
[1749659741280,12.72420879,2857.3,2855.5,10.8001]
[1749659741281,0.7932,2856.7,2855.5,10.8001]
[1749659741434,0.7932,2856.7,2855.9,11.54123348]
[1749659741640,0.1744,2856.2,2855.9,11.54123348]
[1749659741836,0.7932,2856.7,2856.0,0.8132]
[1749659742180,0.3575302,2857.9,2856.7,10.0]
[1749659742485,0.1744,2857.2,2856.9,11.54123348]
[1749659742699,0.1744,2857.2,2856.7,0.8132]
[1749659743033,0.1744,2857.2,2856.8,10.0]
[1749659744041,0.1744,2857.4,2856.8,10.1744]
[1749659744300,0.7816,2857.8,2856.7,0.8132]
[1749659744460,0.1744,2857.1,2856.7,0.8132]
[1749659744639,0.1744,2857.1,2856.8,10.0]
[1749659744977,0.1744,2857.4,2857.0,11.54123348]
[1749659745337,0.1744,2857.4,2856.9,8.89454897]
[1749659747256,0.7816,2857.8,2856.9,8.72014897]
[1749659747480,0.1744,2857.6,2857.4,10.0]
[1749659747662,0.1744,2857.6,2857.3,0.8176]
[1749659747878,0.1744,2857.6,2857.1,0.1744]
[1749659748394,0.8047,2858.2,2857.2,0.8176]
[1749659748688,0.1744,2857.8,2857.3,0.1744]
[1749659748854,0.1744,2857.8,2857.5,10.0]
[1749659749057,0.1744,2858.1,2857.5,10.1744]
[1749659749371,0.1744,2858.3,2857.8,0.1744]
[1749659750079,0.1744,2858.3,2857.9,10.0]
[1749659750387,0.1744,2858.3,2857.6,0.8199]
[1749659750590,0.1744,2858.0,2857.4,0.1744]
[1749659750756,0.1744,2857.7,2857.2,0.9669]
[1749659752493,0.8244,2858.1,2856.5,0.72266556]
[1749659752494,0.8244,2858.1,2856.6,0.7851]
[1749659752698,0.1744,2856.9,2856.4,0.1744]
[1749659752854,0.7877,2856.8,2856.0,0.7851]
[1749659753060,0.7877,2856.8,2856.5,0.00291839]
[1749659753460,0.7877,2856.6,2856.5,0.00291839]
[1749659755897,0.7877,2856.6,2855.5,0.1744]
[1749659756099,0.7877,2856.6,2855.3,0.7851]
[1749659756100,0.1744,2856.2,2855.7,10.1744]
[1749659756502,0.1744,2856.2,2855.7,0.1744]
[1749659758511,0.7877,2856.6,2855.3,0.7851]
[1749659758717,0.1744,2856.0,2855.5,0.1744]
[1749659759015,0.1744,2856.0,2855.5,0.466742]
[1749659759216,0.8073,2855.9,2855.5,0.466742]
[1749659759524,0.8073,2855.4,2853.9,3.13853205]
[1749659759720,10.0,2855.3,2853.9,0.39591321]
[1749659759921,0.7622,2855.2,2853.8,0.35777498]
[1749659760220,0.7622,2855.2,2854.5,10.0]
[1749659761321,3.84947142,2856.7,2854.9,10.0]
[1749659761322,0.7859,2856.1,2854.9,10.0]
[1749659761527,0.7859,2856.1,2855.0,0.7581]
[1749659762286,0.7859,2856.1,2854.6,0.7948]
[1749659762489,0.8308,2855.9,2854.3,0.7948]
[1749659763189,0.7852,2855.7,2854.3,0.7948]
[1749659763525,0.7852,2855.5,2853.9,0.7586]
[1749659763735,0.7852,2855.5,2854.1,8.72014897]
[1749659764025,0.7852,2855.5,2854.2,10.0]
[1749659765111,0.7852,2855.5,2853.9,0.7586]
[1749659765316,0.7852,2855.5,2854.2,10.0]
[1749659765627,1.07754456,2855.5,2854.6,10.0]
[1749659765990,1.07754456,2855.5,2854.3,0.00292064]
[1749659766910,1.07754456,2855.5,2854.6,8.72014897]
[1749659767109,1.07754456,2855.5,2854.7,10.0]
[1749659767694,1.07754456,2855.5,2854.8,0.00292013]
[1749659768734,1.07754456,2855.5,2854.7,8.72014897]
[1749659769112,1.07754456,2855.5,2854.8,10.0]
[1749659769313,0.46674456,2855.5,2855.2,10.0]
[1749659769513,0.1744,2855.8,2855.3,0.1744]
[1749659769705,0.1744,2855.8,2855.4,4.67]
[1749659769905,0.1744,2855.8,2855.5,4.67]
[1749659770337,0.1744,2855.8,2855.4,4.67]
[1749659770812,0.8044,2856.1,2855.4,4.67]
[1749659772142,0.8044,2856.1,2854.7,0.1744]
[1749659772446,0.1744,2855.1,2854.7,4.67]
[1749659772650,0.1744,2855.1,2853.6,3.50428106]
[1749659772651,0.7704,2855.2,2854.3,4.67]
[1749659772854,1.0004,2854.4,2853.8,0.1752]
[1749659773005,1.0004,2854.4,2853.9,4.67]
[1749659774049,0.826,2854.4,2853.9,4.67]
[1749659774348,0.826,2854.4,2853.6,10.7535]
[1749659774349,0.1744,2854.1,2853.6,0.1752]
[1749659774552,0.1752,2853.7,2853.2,0.1752]
[1749659776121,0.1752,2853.7,2853.4,10.0]
[1749659777262,0.826,2854.4,2853.5,0.8072]
[1749659777455,0.826,2854.4,2854.0,10.0]
[1749659777620,0.1744,2854.1,2853.6,10.1752]
[1749659777951,0.826,2854.4,2853.2,10.7882]
[1749659778152,0.1752,2853.7,2853.2,10.9634]
[1749659778354,0.1752,2853.7,2853.2,0.9634]
[1749659778955,0.7883,2854.6,2853.6,10.0]
[1749659779254,0.7883,2854.6,2853.4,10.0]
[1749659779255,0.1744,2854.1,2853.4,10.0]
[1749659779853,0.1744,2854.1,2853.2,0.7882]
[1749659780056,0.7883,2854.0,2853.2,0.7882]